Cogmind - Beta 15 @@@ ROGUE MODE // 2025.05.12 @ 21:54:09 Player: Minty Result: Destroyed by Enhanced Grunt with Neutron Cannon Performance ------------- Evolutions (3) 1500 Regions Visited (9) 1800 Robots Destroyed (59) 295 Value Destroyed (1849) 1849 Prototype IDs (243) 4860 Alien Tech Used (0) 0 Bonus (3750) 3750 TOTAL SCORE: 14054 Bonus ------- Follower Combat Kills 150 Aligned with FarCom 300 Met Data Miner 300 Used Data Conduit 3000 Cogmind --------- Core Integrity 0/700 Matter 189/300 Energy 92/100 System Corruption 6% Temperature Cool (0) Movement Core (50) Location -7/Data Miner Parts ------- > --- POWER (1) -------- (None) > --- PROPULSION (5) --- Makeshift Flight Unit > --- UTILITY (5) ------ Improved Signal Interpreter Modified TNC > --- WEAPON (2) ------- (None) > --- INVENTORY (5) ---- Nuclear Core Trap Extractor (4/4 Fire) Shock Rifle Master Tearclaws Peak State ------------ > --- POWER ------------ Improved Deuterium Engine > --- PROPULSION ------- Wheel Wheel Improved Hover Unit Airjet > --- UTILITY ---------- Large Storage Unit Improved Sensor Array Improved Signal Interpreter Modified TNC Improved Weapon Shielding > --- WEAPON ----------- Shock Rifle Shock Rifle > --- INVENTORY -------- Nuclear Core Nuclear Core Fission Core Core Analyzer Trap Extractor Trap Extractor Supersonic Drone Bay Shock Rifle Shock Rifle Rocket Launcher Rocket Launcher Datajack Deploy-a-Sentry Deploy-a-Sentry Deploy-a-Sentry [Rating: 38] Favorites ----------- Power Ion Engine Engine Ion Engine Propulsion Aluminum Leg Leg Aluminum Leg Wheel Wheel Hover Unit Airjet Flight Unit Makeshift Flight Unit Utility Large Storage Unit Device Improved Sensor Array Storage Large Storage Unit Processor Modified TNC Protection Improved Weapon Shielding Weapon Light Cannon Energy Gun Shock Rifle Ballistic Cannon Light Cannon Launcher Rocket Launcher Special Melee Weapon Datajack Build | -11 -10 -10 -10 -9 -8 -7 -7 -7 -7 ------- Run | Yrd Mat Min Exi Min Mat Fac Low Low Dat Slots Evolved 6 | . . . . . 4 2 . . . Power . | . . . . . . . . . . Propulsion 3 | . . . . . 2 1 . . . Utility 3 | . . . . . 2 1 . . . Weapon . | . . . . . . . . . . Parts Attached 46 | . 4 . 2 6 17 6 10 1 . Power 3 | . . . . 2 . 1 . . . Engine 3 | . . . . 2 . 1 . . . Core . | . . . . . . . . . . Reactor . | . . . . . . . . . . Propulsion 16 | . . . 1 2 6 3 3 1 . Treads . | . . . . . . . . . . Leg 1 | . . . 1 . . . . . . Wheel 7 | . . . . 2 2 3 . . . Hover 4 | . . . . . 4 . . . . Flight 4 | . . . . . . . 3 1 . Utility 14 | . 2 . . 1 6 2 3 . . Device 4 | . . . . . 2 1 1 . . Storage 1 | . 1 . . . . . . . . Processor 5 | . . . . . 2 1 2 . . Hackware . | . . . . . . . . . . Protection 4 | . 1 . . 1 2 . . . . Artifact . | . . . . . . . . . . Weapon 13 | . 2 . 1 1 5 . 4 . . Energy Gun 7 | . . . . . 5 . 2 . . Energy Cannon . | . . . . . . . . . . Ballistic Gun . | . . . . . . . . . . Ballistic Cannon 3 | . 2 . 1 . . . . . . Launcher 2 | . . . . 1 . . 1 . . Special Weapon . | . . . . . . . . . . Impact Weapon . | . . . . . . . . . . Slashing Weapon . | . . . . . . . . . . Piercing Weapon . | . . . . . . . . . . Special Melee Weapon 1 | . . . . . . . 1 . . Unidentified Prototypes 2 | . . . . . 2 . . . . Corrupted Parts 2 | . . . . . . 2 . . . System Corruption 4 | . . . . . . 4 . . . Parts Lost 25 | . 2 . . 2 4 2 8 2 5 Power 2 | . . . . 1 . . 1 . . Propulsion 12 | . . . . 1 2 2 5 . 2 Utility 4 | . 1 . . . 1 . . 1 1 Weapon 7 | . 1 . . . 1 . 2 1 2 Highest Loss Streak 5 | . 2 . . 2 3 1 5 2 5 To Critical Strikes . | . . . . . . . . . . Average Backups 11 | 6 9 11 12 10 11 12 11 9 9 Power 3 | 1 1 1 3 3 4 3 3 3 3 Propulsion 1 | 4 4 5 3 1 . . . . . Utility 3 | . 1 2 3 4 4 4 3 2 3 Weapon 2 | 1 2 2 . . 2 4 3 3 2 Tool/Special . | . . . . . . . . . . Unused Backups 18 | . 7 . 3 2 1 1 . . 4 Power 6 | . 1 . . 1 1 . . . 3 Propulsion 5 | . 2 . 2 1 . . . . . Utility 2 | . 1 . . . . 1 . . . Weapon 4 | . 3 . 1 . . . . . . Tool/Special 1 | . . . . . . . . . 1 Average Slot Usage (%) 76 | . 95 85 85 97 81 80 51 61 52 Engine 8 | . 14 14 14 13 9 7 2 . . Leg 8 | . 28 28 28 1 3 . . . . Wheel 4 | . . . . 26 10 . . . . Hover 4 | . . . . . 9 20 . . . Flight 3 | . . . . . . . 7 15 18 Device 2 | . . . . . 3 5 3 7 7 Storage 10 | . 14 14 14 14 9 7 7 7 6 Processor 9 | . . . . . 3 12 24 21 15 Protection 6 | . 9 . . 12 15 9 . . . Energy Gun 6 | . 10 . . . 14 15 4 . . Ballistic Cannon 9 | . 17 28 28 27 3 . . . . Peak Build Rating 38 | 6 8 7 11 14 31 38 38 33 33 Average Rating 20 | 6 7 7 9 12 22 33 28 30 28 On Entrance 18 | 6 6 7 7 11 13 31 38 30 33 Naked Turns . | . . . . . . . . . . Heaviest Build 41 | 13 32 31 31 39 41 39 39 23 22 Greatest Support 30 | 20 20 20 20 20 28 30 24 22 22 Greatest Overweight (x) 11 | . 1 1 1 1 5 3 11 1 1 Average Overweight (x) 1 | . . 1 1 1 1 1 3 . . Largest Inventory Capacity 15 | 8 15 15 15 15 15 15 15 15 15 Average Capacity 14 | 8 13 15 15 15 15 15 15 15 14 Most Carried 15 | 6 11 11 15 15 15 15 15 15 15 Average Carried 13 | 6 9 11 13 13 14 15 14 14 13 Final Capacity 15 | 8 15 15 15 15 15 15 15 15 5 Final Carried 15 | 6 11 11 14 15 15 15 15 15 5 Class Distribution -------------------- 80% | Mutant 9% | Skirmisher 5% | Trapper-Mutant 3% | Trapper-Assassin Dominant Class ---------------- Mutant | -10/Materials Mutant | -10/Mines Mutant | -10/Exiles Mutant | -9/Mines Mutant | -8/Materials Skirmisher | -7/Factory Mutant | -7/Lower Caves Trapper-Assassin | -7/Lower Caves Trapper-Scout | -7/Data Miner Resources | -11 -10 -10 -10 -9 -8 -7 -7 -7 -7 ----------- Run | Yrd Mat Min Exi Min Mat Fac Low Low Dat Matter Collected 1399 | 200 247 . . 275 283 70 249 75 . Remotely . | . . . . . . . . . . Salvage Created 1784 | . 282 . . 169 704 409 190 14 16 Parts 100 | . 17 . . 7 31 27 11 7 . Haulers Intercepted 4 | . 2 . . . 1 1 . . . Recyclers Shooed 4 | . . . . . 3 1 . . . Parts Field Recycled . | . . . . . . . . . . Retrieved Matter . | . . . . . . . . . . Parts Self-Destructed 12 | . . . . . . . 12 . . Prevented 3 | . . . . . . . 3 . . Kills | -11 -10 -10 -10 -9 -8 -7 -7 -7 -7 ------- Run | Yrd Mat Min Exi Min Mat Fac Low Low Dat Combat Hostiles Destroyed 41 | . 9 . . 8 12 3 6 3 . Guns 10 | . 1 . . . 5 1 3 . . Cannons 13 | . 8 . . 3 2 . . . . AOE 16 | . . . . 5 4 1 3 3 . Classes Destroyed 16 | . 6 . . 1 5 1 1 1 1 Worker 3 | . 1 . . . 1 1 . . . Builder 4 | . . . . . 2 2 . . . Tunneler 2 | . . . . . . 2 . . . Hauler 4 | . 2 . . . 1 1 . . . Recycler 2 | . . . . . 1 1 . . . Minesweeper 1 | . . . . . . . 1 . . Operator 1 | . 1 . . . . . . . . Turret 1 | . . . . . . . . . 1 Watcher 1 | . 1 . . . . . . . . Swarmer 11 | . 5 . . 3 . . 3 . . Grunt 16 | . 4 . . 4 6 . 2 . . Brawler 1 | . . . . 1 . . . . . Duelist 2 | . . . . . 2 . . . . Sentry 5 | . . . . . 3 2 . . . Hunter 3 | . . . . . 1 1 1 . . Master Thief 3 | . . . . . . . . 3 . Best Kill Streak 8 | . 3 . . 3 8 4 2 3 . Combat Bots Only 6 | . 3 . . 3 6 2 2 3 . Max Kills in Single Turn 3 | . 1 . . 2 3 1 1 2 1 Gunslinging . | . . . . . . . . . . Exploded 2 | . . . . 2 2 1 1 2 . Melee . | . . . . . . . . . . Uniques/NPCs Destroyed . | . . . . . . . . . . Combat | -11 -10 -10 -10 -9 -8 -7 -7 -7 -7 -------- Run | Yrd Mat Min Exi Min Mat Fac Low Low Dat Hostile Shots Fired 309 | . 67 . . 40 48 74 55 7 18 Missed 94 | . 19 . . 6 12 34 11 3 9 Hits 215 | . 48 . . 34 36 40 44 4 9 Melee 6 | . . . . 2 . . . 4 . Projectile 209 | . 48 . . 32 36 40 44 . 9 Critical Strikes 5 | . 1 . . . 1 . 3 . . Damage Taken 3177 | . 498 . . 403 695 289 690 144 458 Core 1032 | . 131 . . 45 135 89 212 101 319 Absorbed by Shields . | . . . . . . . . . . Redirected to Shielding 178 | . 51 . . . 82 45 . . . Regen/Repaired (Parts) 124 | . . . . . 124 . . . . Core Remaining (%) 68 | 100 . . . 29 75 . . . . Volleys Fired 149 | . 35 . . 16 33 27 31 4 3 Largest 2 | . 2 . . 2 2 2 2 1 1 Hottest 100 | . 70 . . 60 100 100 100 33 33 Shots Fired 263 | . 70 . . 30 61 54 41 4 3 Gun 164 | . 27 . . . 50 54 33 . . Cannon 77 | . 43 . . 28 6 . . . . Launcher 22 | . . . . 2 5 . 8 4 3 Special . | . . . . . . . . . . Kinetic 77 | . 43 . . 28 6 . . . . Thermal . | . . . . . . . . . . Explosive 22 | . . . . 2 5 . 8 4 3 Electromagnetic 164 | . 27 . . . 50 54 33 . . Robot Hit Streak 12 | . 7 . . 6 10 12 5 2 1 Robot Miss Streak 7 | . 4 . . 1 1 5 7 1 1 Penetration Max . | . . . . . . . . . . Secondary Targets 2 | . . . . . . 1 1 . . Max Gunslinging Chain 1 | . . . . . . 1 1 . . Shots Hit Robots 157 | . 38 . . 18 43 33 20 2 3 Core Hits 94 | . 17 . . 6 34 12 15 5 5 Critical Kills . | . . . . . . . . . . Critical Parts Destroyed . | . . . . . . . . . . Critical Strikes 5 | . 1 . . 2 1 . 1 . . Blast 4 | . 1 . . 2 1 . . . . Corrupt 1 | . . . . . . . 1 . . Melee Attacks 2 | . . . . . . . . . 2 Impact . | . . . . . . . . . . Slashing . | . . . . . . . . . . Piercing . | . . . . . . . . . . Sneak Attacks 2 | . . . . . . . . . 2 Combat Hostiles . | . . . . . . . . . . Follow-up Attacks . | . . . . . . . . . . Damage Inflicted 4844 | . 659 . . 699 1441 813 630 398 204 Guns 1620 | . 204 . . . 619 547 250 . . Cannons 870 | . 455 . . 319 96 . . . . Explosions 2333 | . . . . 380 726 266 380 398 183 Melee . | . . . . . . . . . . Ramming 21 | . . . . . . . . . 21 Kinetic 870 | . 455 . . 319 96 . . . . Thermal 544 | . . . . 192 86 266 . . . Explosive 1789 | . . . . 188 640 . 380 398 183 Electromagnetic 1620 | . 204 . . . 619 547 250 . . Impact . | . . . . . . . . . . Slashing . | . . . . . . . . . . Piercing . | . . . . . . . . . . Highest Corruption 6 | . . . . . . 4 4 4 6 Average Corruption 4 | . . . . . . 2 4 4 5 Corruption Purged . | . . . . . . . . . . Corruption Blocked . | . . . . . . . . . . Effects 23 | . . . . . . . 17 6 . Message Errors 4 | . . . . . . . 4 . . Matter Fused 8 | . . . . . . . 5 3 . Heat Flow Errors 2 | . . . . . . . 1 1 . Energy Discharges 5 | . . . . . . . 3 2 . Parts Rejected 1 | . . . . . . . 1 . . Data Loss (minor) 1 | . . . . . . . 1 . . Data Loss (major) 1 | . . . . . . . 1 . . Weapon Failures 1 | . . . . . . . 1 . . Overload Shots . | . . . . . . . . . . Overflow Damage 154 | . 16 . . 38 32 16 . 52 . Projectiles 16 | . 16 . . . . . . . . Explosions 138 | . . . . 38 32 16 . 52 . Melee . | . . . . . . . . . . Knockbacks 8 | . 4 . . 3 1 . . . . Impact . | . . . . . . . . . . Kinetic 8 | . 4 . . 3 1 . . . . Secondary . | . . . . . . . . . . Self-Inflicted Damage 322 | . . . . . 151 . 8 141 22 Shots 11 | . . . . . 5 . 1 4 1 Rammed 1 | . . . . . . . . . 1 Targets Rammed 1 | . . . . . . . . . 1 Kicked . | . . . . . . . . . . Crushed . | . . . . . . . . . . Highest Temperature 315 | . 315 . . 63 198 122 160 197 . Average Temperature 59 | . 106 . . 26 63 35 28 110 . Received Heat Transfer 741 | . 213 . . 168 189 18 153 . . Effects 1 | . 1 . . . . . . . . Interference 1 | . 1 . . . . . . . . Siege Activations . | . . . . . . . . . . Martial Activations . | . . . . . . . . . . Shielding Activations . | . . . . . . . . . . Robots Disrupted . | . . . . . . . . . . Combat Hostiles . | . . . . . . . . . . Robots Corrupted 2 | . . . . . 1 1 . . . Combat Hostiles 2 | . . . . . 1 1 . . . Parts Fried 6 | . . . . . 4 1 1 . . Impact Corruptions . | . . . . . . . . . . Robots Melted . | . . . . . . . . . . Combat Hostiles . | . . . . . . . . . . Parts Melted 1 | . . . . . . 1 . . . Heat Transferred 500 | . . . . 200 100 200 . . . Parts Sabotaged . | . . . . . . . . . . Parts Stolen 3 | . . . . . . . . 3 . Parts Stripped . | . . . . . . . . . . Power Chain Reactions 3 | . . . . . 2 1 . . . Alert | -11 -10 -10 -10 -9 -8 -7 -7 -7 -7 ------- Run | Yrd Mat Min Exi Min Mat Fac Low Low Dat Maximum Alert Level 1 | . . . . 1 1 1 . . . Low Security (%) 82 | 100 100 100 . 53 74 92 . . . Level 1 17 | . . . . 46 25 7 . . . Level 2 . | . . . . . . . . . . Level 3 . | . . . . . . . . . . Level 4 . | . . . . . . . . . . Level 5 . | . . . . . . . . . . High Security . | . . . . . . . . . . Max Security . | . . . . . . . . . . Peak Influence 397 | . 170 57 . 397 243 212 . . . Initial 128 | . . 57 . . 128 77 . . . Average 126 | . 48 18 . 168 177 142 . . . Influence Increases 1768 | . 327 . . 497 452 307 185 . . Destroy 0b10 Robot/C 760 | . 180 . . 160 240 60 120 . . Destroy 0b10 Robot/NC 90 | . 25 . . . 25 35 5 . . Destroy Leader 210 | . 46 . . 30 72 32 30 . . Successful Hack 54 | . 14 . . . 32 8 . . . Disable Machine 420 | . . . . 240 45 135 . . . Destroy Structure 144 | . 2 . . 67 38 37 . . . Partial Spotted 15 | . 15 . . . . . . . . Lose Combat Pursuer 75 | . 45 . . . . . 30 . . Influence Decreases 1768 | . 178 149 . 166 611 353 311 . . Entered New Map 437 | . . 92 . . 203 95 47 . . Time Decay 1161 | . 158 57 . 146 368 238 194 . . Lost Part 170 | . 20 . . 20 40 20 70 . . Squads Dispatched 9 | . 1 . . . 5 3 . . . Investigation 3 | . . . . . 1 2 . . . Extermination 1 | . . . . . . 1 . . . Reinforcement 5 | . 1 . . . 4 . . . . Assault . | . . . . . . . . . . Garrison . | . . . . . . . . . . Intercept . | . . . . . . . . . . Searches Triggered . | . . . . . . . . . . Construction Impeded 1 | . . . . . 1 . . . . Haulers Reinforced . | . . . . . . . . . . Active Scanning Responses . | . . . . . . . . . . Cargo Convoy Interrupts . | . . . . . . . . . . Stealth | -11 -10 -10 -10 -9 -8 -7 -7 -7 -7 --------- Run | Yrd Mat Min Exi Min Mat Fac Low Low Dat Distress Signals 3 | . 1 . . . 2 . . . . Communications Jammed . | . . . . . . . . . . Distress Signals . | . . . . . . . . . . Times Spotted 65 | . 19 . . 8 14 7 9 4 4 Peak Tracking Total 5 | . 5 . . 3 4 4 4 4 4 Tactical Retreats 4 | . 3 . . . . . 1 . . Traps | -11 -10 -10 -10 -9 -8 -7 -7 -7 -7 ------- Run | Yrd Mat Min Exi Min Mat Fac Low Low Dat Traps Triggered 1 | . . . . . . 1 . . . Indirectly . | . . . . . . . . . . Trap Hack Attempts . | . . . . . . . . . . Triggered . | . . . . . . . . . . Disarmed . | . . . . . . . . . . Reprogrammed . | . . . . . . . . . . Reused . | . . . . . . . . . . Traps Extracted 1 | . . . . . . . . 1 . Installed . | . . . . . . . . . . Triggered . | . . . . . . . . . . Most Traps Carried 9 | . . . . . . . 8 9 9 Machines | -11 -10 -10 -10 -9 -8 -7 -7 -7 -7 ---------- Run | Yrd Mat Min Exi Min Mat Fac Low Low Dat Machines Disabled 31 | . 2 . . 16 3 9 1 . . Max in Single Turn 16 | . 1 . . 16 1 6 1 . . Machines Repaired . | . . . . . . . . . . Machines Dismantled . | . . . . . . . . . . Machines Sabotaged . | . . . . . . . . . . Overloaded Fab Kills . | . . . . . . . . . . Hacking | -11 -10 -10 -10 -9 -8 -7 -7 -7 -7 --------- Run | Yrd Mat Min Exi Min Mat Fac Low Low Dat Machines Accessed 17 | . 4 . 2 . 5 2 1 . 3 Terminals 8 | . 4 . . . 3 1 . . . Fabricators 1 | . . . . . . 1 . . . Repair Stations 2 | . . . . . 2 . . . . Recycling Units . | . . . . . . . . . . Scanalyzers . | . . . . . . . . . . Garrison Access . | . . . . . . . . . . Total Hacks 80 | . 15 . 6 . 28 6 1 . 24 Successful 57 | . 5 . 6 . 17 4 1 . 24 Failed 23 | . 10 . . . 11 2 . . . Catastrophic . | . . . . . . . . . . Database Lockouts . | . . . . . . . . . . Manual 21 | . 3 . 1 . 14 3 . . . Terminals 35 | . 15 . . . 17 3 . . . Fabricators 3 | . . . . . . 3 . . . Repair Stations 11 | . . . . . 11 . . . . Recycling Units . | . . . . . . . . . . Scanalyzers . | . . . . . . . . . . Garrison Access . | . . . . . . . . . . Terminal Hacks 42 | . 4 . 6 . 6 1 1 . 24 Record 11 | . . . 5 . . . . . 6 Part Schematic 10 | . . . . . . . . . 10 Robot Schematic 5 | . . . . . . . . . 5 Robot Analysis 1 | . . . . . 1 . . . . Prototype ID Bank 5 | . 1 . . . 1 . . . 3 Open Door 1 | . . . . . . . 1 . . Branch Access Points 1 | . . . . . 1 . . . . Emergency Access Points 1 | . 1 . . . . . . . . Terminal Index 2 | . 1 . . . 1 . . . . Alert Level 3 | . . . . . 2 1 . . . Locate Traps 1 | . 1 . . . . . . . . Proto ID Catalog 1 | . . . 1 . . . . . . Fabricator Hacks 1 | . . . . . . 1 . . . Network Status 1 | . . . . . . 1 . . . Repair Station Hacks 7 | . . . . . 7 . . . . Scan Component 4 | . . . . . 4 . . . . Repair 3 | . . . . . 3 . . . . Recycling Unit Hacks . | . . . . . . . . . . Scanalyzer . | . . . . . . . . . . Garrison Access Hacks . | . . . . . . . . . . Unauthorized Hacks 7 | . 1 . . . 4 2 . . . Terminals 4 | . 1 . . . 3 . . . . Botnet 4 | . 1 . . . 3 . . . . Fabricators 2 | . . . . . . 2 . . . Liberate 1 | . . . . . . 1 . . . Fabnet 1 | . . . . . . 1 . . . Repair Stations 1 | . . . . . 1 . . . . Mechanics 1 | . . . . . 1 . . . . Recycling Units . | . . . . . . . . . . Scanalyzers . | . . . . . . . . . . Garrison Access . | . . . . . . . . . . Data Cores Recovered 1 | . 1 . . . . . . . . Used 1 | . 1 . . . . . . . . Hacking Detections 11 | . 4 . . . 5 2 . . . Full Trace Events 2 | . . . . . 1 1 . . . Feedback Events . | . . . . . . . . . . Feedback Blocked . | . . . . . . . . . . Robot Schematics Acquired 5 | . . . . . . . . . 5 Robots Built . | . . . . . . . . . . Authchips . | . . . . . . . . . . Time . | . . . . . . . . . . Total Robot Build Rating . | . . . . . . . . . . Part Schematics Acquired 10 | . . . . . . . . . 10 Parts Built . | . . . . . . . . . . Authchips . | . . . . . . . . . . Time . | . . . . . . . . . . Total Part Build Rating . | . . . . . . . . . . Parts Repaired 3 | . . . . . 3 . . . . Time 96 | . . . . . 96 . . . . Parts Recycled . | . . . . . . . . . . Recycled Matter . | . . . . . . . . . . Retrieved Matter . | . . . . . . . . . . Retrieved Components . | . . . . . . . . . . Parts Scanalyzed . | . . . . . . . . . . Part Schematics Acquired . | . . . . . . . . . . Parts Damaged . | . . . . . . . . . . Bothacking | -11 -10 -10 -10 -9 -8 -7 -7 -7 -7 ------------ Run | Yrd Mat Min Exi Min Mat Fac Low Low Dat Used RIF Installer . | . . . . . . . . . . Robots Hacked 1 | . . . . . . . . . 1 Non-combat . | . . . . . . . . . . Combat 1 | . . . . . . . . . 1 Robot Hacks Applied 2 | . . . . . . . . . 2 parse_system 2 | . . . . . . . . . 2 Relay Couplers Released . | . . . . . . . . . . Fabnet Peak Effective % . | . . . . . . . . . . Robots Rewired . | . . . . . . . . . . Allies Hacked . | . . . . . . . . . . Hacks Repelled . | . . . . . . . . . . Allies | -11 -10 -10 -10 -9 -8 -7 -7 -7 -7 -------- Run | Yrd Mat Min Exi Min Mat Fac Low Low Dat Total Allies . | . . . . . . . . . . Largest Group . | . . . . . . . . . . Highest-Rated Group . | . . . . . . . . . . Highest-Rated Ally . | . . . . . . . . . . Total Orders 3 | . . . . . 2 . 1 . . EXPLORE 2 | . . . . . 1 . 1 . . RETURN 1 | . . . . . 1 . . . . Ally Attacks 16 | . . . . . . . . . 16 Total Damage 888 | . . . . . . . . . 888 Kills 2 | . . . . . . . . . 2 Allies Corrupted . | . . . . . . . . . . Allies Melted . | . . . . . . . . . . Turrets Deployed 2 | . . . . . . . . . 2 Intel | -11 -10 -10 -10 -9 -8 -7 -7 -7 -7 ------- Run | Yrd Mat Min Exi Min Mat Fac Low Low Dat Active Infowar (turns) 2197 | . . . . . 317 503 1024 269 84 Sensors 956 | . . . . . . 380 330 176 70 T.N.C. 2197 | . . . . . 317 503 1024 269 84 Robot Analysis Total 152 | . . . . . 1 . . . 151 Derelict Logs Recovered 7 | . . 1 . 2 . . 2 2 . Drone Launches 3 | . . . . . 1 . 1 . 1 Drone Recoveries 2 | . . . . . 1 . 1 . . Exploration | -11 -10 -10 -10 -9 -8 -7 -7 -7 -7 ------------- Run | Yrd Mat Min Exi Min Mat Fac Low Low Dat Turns Passed 4463 | 5 588 207 498 428 857 503 1024 269 84 Spaces Moved 2499 | 4 280 104 256 377 470 326 382 200 100 Core 117 | . . . . . . . 104 . 13 Treads . | . . . . . . . . . . Legs 645 | 4 280 104 256 1 . . . . . Wheels 688 | . . . . 376 268 22 22 . . Hover 506 | . . . . . 202 304 . . . Flight 543 | . . . . . . . 256 200 87 Fastest Speed 44 | 120 120 190 190 95 95 95 49 44 44 Average Speed 144 | 120 167 190 190 95 114 121 224 122 48 Slowest Speed 600 | 120 190 190 190 190 360 176 600 142 129 Overloaded Moves . | . . . . . . . . . . Propulsion Burnouts . | . . . . . . . . . . Robots Hopped . | . . . . . . . . . . Potential Cave-ins . | . . . . . . . . . . Cave-ins Triggered . | . . . . . . . . . . Exploration Rate (%) 49 | 1 54 39 61 85 64 13 68 36 78 Regions Visited 9 Branch Regions 6 Pre-discovered Areas 30 | . . . 1 1 . . . 1 27 Known Exits Taken 3 | . . . . . . 1 1 1 . Unknown Exits Taken 6 | 1 1 1 1 1 1 . . . . Scrap Searched 8 | . . . . 3 . . 2 3 . Spaces Dug 16 | . . . . 11 . . . 5 . Terrain Destroyed 243 | . . . . 80 41 43 52 11 16 Melee . | . . . . . . . . . . Projectile . | . . . . . . . . . . AOE 243 | . . . . 80 41 43 52 11 16 Terrain Rammed . | . . . . . . . . . . Walls Destroyed . | . . . . . . . . . . Machines Disabled . | . . . . . . . . . . Actions | -11 -10 -10 -10 -9 -8 -7 -7 -7 -7 --------- Run | Yrd Mat Min Exi Min Mat Fac Low Low Dat Total 3091 | 4 330 114 270 414 725 376 507 218 133 Wait 314 | 1 5 11 . 10 182 14 65 5 21 Move 2490 | 3 279 103 255 376 469 325 381 199 100 Hop . | . . . . . . . . . . Pick Up 28 | . 6 . 8 2 6 1 2 3 . Fast Attach 24 | . 1 . . 1 11 5 5 1 . Attach 21 | . 1 . . 4 4 . 8 2 2 Detach 13 | . . . . 2 2 . 8 1 . Swap 27 | . 2 . 2 3 10 1 6 3 . Drop 22 | . 1 . 5 . 8 3 1 . 4 Fire 149 | . 35 . . 16 33 27 31 4 3 Melee 2 | . . . . . . . . . 2 Ram 1 | . . . . . . . . . 1 Kick . | . . . . . . . . . . Crush . | . . . . . . . . . . Escape Stasis . | . . . . . . . . . . Rewire . | . . . . . . . . . . Trap . | . . . . . . . . . . Miscellaneous . | . . . . . . . . . . Route ------- -11/Scrapyard -10/Materials (discovered 3 exits: [*Mat x2] / [*Min]) -10/Mines -10/Exiles -9/Mines -8/Materials -7/Factory -7/Lower Caves -7/Lower Caves (discovered 2 exits: Fac / *Dat) -7/Data Miner (discovered 1 exit: [*Pro]) History --------- Turn | Location | Event 1 | -11/Scrapyard | Discovered new exit (range 1) 6 | -11/Scrapyard | Entered Materials 236 | -10/Materials | Discovered new exit (range 12) 300 | -10/Materials | Build established: Mutant 439 | -10/Materials | Discovered new exit (range 13) 451 | -10/Materials | Core integrity fell below 50% 461 | -10/Materials | Discovered new exit (range 16) 594 | -10/Materials | Entered Mines 652 | -10/Mines | Assembled infested the area 678 | -10/Mines | Learned Materials garrison access intel 693 | -10/Mines | Met 8R-AWN 794 | -10/Mines | Discovered new exit (range 5) 801 | -10/Mines | Entered Exiles 852 | -10/Exiles | Welcomed by 8R-AWN 882 | -10/Exiles | Met EX-HEX 936 | -10/Exiles | Met EX-BIN 956 | -10/Exiles | Aligned with FarCom system 958 | -10/Exiles | Given EX-Vault access code 1006 | -10/Exiles | Opened EX-Vault 1026 | -10/Exiles | Found Deploy-a-Sentry 1029 | -10/Exiles | Found Deploy-a-Sentry 1032 | -10/Exiles | Found Deploy-a-Sentry 1037 | -10/Exiles | Found Modified TNC 1044 | -10/Exiles | Found Supersonic Drone Bay 1085 | -10/Exiles | Warned to stay clear of 0b10 Research branches 1138 | -10/Exiles | Met EX-DEC 1151 | -10/Exiles | Learned location of Zion (-6) 1277 | -10/Exiles | Discovered new exit (range 14) 1299 | -10/Exiles | Stole three prototypes: Modified TNC, Supersonic Drone Bay, Deploy-a-Sentry 1299 | -10/Exiles | Entered Mines 1434 | -9/Mines | Learned 2 Materials zone layouts 1451 | -9/Mines | Found a Scrap Suit stashed away for nefarious purposes 1492 | -9/Mines | Received a Rocket Launcher from a helpful Derelict 1720 | -9/Mines | Discovered new exit (range 9) 1727 | -9/Mines | Entered Materials 1727 | -8/Materials | Evolved 4 slots: Propulsion x2, Utility x2 1729 | -8/Materials | Loaded intel: 1 garrison access location 1829 | -8/Materials | Discovered new exit (range 50) 1880 | -8/Materials | Lost 3 parts (1n1u1w) 2048 | -8/Materials | Repaired Rocket Launcher 2075 | -8/Materials | Repaired Wheel 2382 | -8/Materials | Repaired Shock Rifle 2584 | -8/Materials | Entered Factory 2584 | -7/Factory | Evolved 2 slots: Propulsion x1, Utility x1 2586 | -7/Factory | FarCom data flow suspended 2914 | -7/Factory | Discovered new exit (range 16) 2956 | -7/Factory | Identified exit to Lower Caves 3013 | -7/Factory | Build established: Skirmisher 3087 | -7/Factory | Entered Lower Caves 3131 | -7/Lower Caves | Lost 5 parts (4n1w) 3447 | -7/Lower Caves | Build established: Mutant 3829 | -7/Lower Caves | Learned 8 Factory zone layouts 3854 | -7/Lower Caves | Learned location of 1 exit from Factory 3913 | -7/Lower Caves | Discovered new exit (range 9) 3925 | -7/Lower Caves | Identified exit to Lower Caves 4111 | -7/Lower Caves | Entered another Lower Caves area 4293 | -7/Lower Caves | Identified exit to Factory 4299 | -7/Lower Caves | Encountered a Warlord checkpoint 4344 | -7/Lower Caves | Spotted RG-ILR(f) 4345 | -7/Lower Caves | Encountered a Master Thief 4346 | -7/Lower Caves | Spotted I9-J7Z(f) 4346 | -7/Lower Caves | Spotted F7-BHA(f) 4347 | -7/Lower Caves | Encountered a Master Thief 4347 | -7/Lower Caves | Encountered a Master Thief 4347 | -7/Lower Caves | Supersonic Drone Bay stolen by Master Thief 4347 | -7/Lower Caves | Spotted ZR-4XM(f) 4348 | -7/Lower Caves | Encountered a Master Thief 4348 | -7/Lower Caves | Destroyed I9-J7Z(f) 4349 | -7/Lower Caves | Deploy-a-Sentry stolen by Master Thief 4352 | -7/Lower Caves | Deploy-a-Sentry stolen by Master Thief 4353 | -7/Lower Caves | Destroyed RG-ILR(f) 4353 | -7/Lower Caves | Destroyed ZR-4XM(f) 4354 | -7/Lower Caves | Core integrity fell below 50% 4377 | -7/Lower Caves | Discovered new exit (range 8) 4380 | -7/Lower Caves | Identified exit to Data Miner 4380 | -7/Lower Caves | Entered Data Miner 4380 | -7/Data Miner | Discovered new exit (range 6) 4389 | -7/Data Miner | Met Data Miner 4398 | -7/Data Miner | Learned location of Section 7 (-2) 4398 | -7/Data Miner | Acquired the access code to Warlord's prototype stash 4404 | -7/Data Miner | Received God Mode back door access code from Data Miner 4413 | -7/Data Miner | Interfaced with the Data Conduit 4423 | -7/Data Miner | DAS Turret deployed 4427 | -7/Data Miner | DAS Turret deployed 4451 | -7/Data Miner | Core integrity fell below 20% 4464 | -7/Data Miner | Destroyed by Enhanced Grunt with Neutron Cannon Last Messages --------------- 04425_ Dropped Deploy-a-Sentry. 04426_ Enhanced Grunt destroyed. 04427_ DAS Turret deployed. 04428_ Enhanced Grunt knocked back. 04434_ Destroyed Adv. Particle Charger. 04434_ Enhanced Grunt knocked back. 04436_ Destroyed Adv. Heat Sink. 04436_ Enhanced Grunt knocked back. 04438_ Enhanced Grunt destroyed. 04440_ Enhanced Grunt knocked back. 04442_ DAS Turret destroyed. 04445_ Enhanced Grunt knocked back. 04449_ DAS Turret destroyed. 04450_ Imp. Sensor Array destroyed. 04450_ Nuclear Pulse Thruster destroyed. 04454_ Rocket Launcher destroyed. 04456_ Dropped Lrg. Storage Unit. 04457_ Trailblazer released from Supersonic Drone Bay. 04461_ Trailblazer destroyed. 04463_ Dropped Supersonic Drone Bay. Map ----- +----------------------------------------------------+ | | | | | | | | | | | | | | | | | | | | | | | | | | | | | | | | | | | ?????????????????????????????????????????? | | ?????????????????????????????????????????? | | ?????????????????????????????????????????? | | ?????????????????????????????????????????? | | ?????????????????#####???????####????????? | | ################## #####?### #????????? | | """"""""""""## %# ### #????????? | | """"" """""" #!## < ##????????? | | """"" !%= @ ######???? | | "" g % #???? | | "" g #???? | | " #???? | | "" % ##???? | | "" * "" """""""""#####????? | | """ &[! ;#############????????? | | """ &!* ##????????????????????? | | """"" "###;# ##?????????????????????? | | ####"## "#?### #??????????????????????? | | ???#"##" "#???###??????????????????????? | | ???#"### "#????????????????????????????? | | ???#"## "#????????????????????????????? | | ???#"## "#????????????????????????????? | | ?????# "#????????????????????????????? | | ?????### "#????????????????????????????? | | ???????# "##???????????????????????????? | | ??????## ""#???????????????????????????? | | ?????## ""#???????????????????????????? | | ??##"#"X ""#???????????????????????????? | | ??""""" "####????????????????????????? | | ??""""" X"""""????????????????????????? | | ??##"#"X "##"#????????????????????????? | | ???#?## X""""#????????????????????????? | | ??????## "##"#????????????????????????? | +----------------------------------------------------+ Best States ------------- Heat Dissipation 34 Energy Generation 16 Energy Capacity 290 Matter Stores 300 Matter Capacity 300 Sight Range 16 Robot Scan Range 15 Terrain Scan Density 10 Armor Coverage 150 Core Shielding 20 Weapon Shielding 66 Evasion (%) 61 Core Analysis 6 Salvage Targeting 4 Trap Extractor Capacity 4 Item Schematics ----------------- Combat Drone Bay | -7/Data Miner | Free Lgt. Regenerative Plating | -7/Data Miner | Free Multireflex Exoskeleton | -7/Data Miner | Free Gravity Neutralizer | -7/Data Miner | Free Shock Maul | -7/Data Miner | Free Gyrokinetic Inverter | -7/Data Miner | Free Adv. Cooling System | -7/Data Miner | Free Enh. Gauss Cannon | -7/Data Miner | Free Tesla Rifle | -7/Data Miner | Free Imp. Thermal Generator | -7/Data Miner | Free Robot Schematics ------------------ A-15 Conveyor | -7/Data Miner | Free X-57 Shotgunner | -7/Data Miner | Free L-41 Fighter | -7/Data Miner | Free D-63 Destroyer | -7/Data Miner | Free G-50 Soldier | -7/Data Miner | Free Fabricated ------------ Nothing Repaired ---------- Rocket Launcher | 22% | -8/Materials Wheel | 37% | -8/Materials Shock Rifle | 18% | -8/Materials Alien Tech Used ----------------- None Achievements -------------- None Challenges ------------ None Game ------ Seed InertialLauncherComputer Manual? 0 Play Time 00:40:48 Cumulative 1037.2 hours Start 2025.05.12 @ 17:41:47 End 2025.05.12 @ 21:54:09 Sessions 5 Manual Loads 0 Difficulty Rogue Special Mode None Game No. 1275 Rogue 992 Adventurer 124 Explorer 159 Win Type - Total 45 Types 31/0/8/4/1/0/0/1/0/0 Lore% 91 Gallery% 85 Achievement% 80 Wizard Run 0 Options --------- Layout 0 ASCII 0 Keyboard 1 Movement Numpad Keybinds 0 Fullscreen 2 Font 18/X11 Map View 76x50 Zoom Use 0% Tactical HUD 1 Map Filters NONE Filters NONE Steam 1 RUN: eb0d6faf-787c-48ca-b241-e5e3b7c03187